[Event "*** Titled Tuesday Blitz"]
[Site "Chess.com"]
[Date "2018.07.03"]
[Round "9"]
[White "attack2mateU"]
[Black "krzysztofszczurek"]
[Result "1-0"]
[WhiteElo "2653"]
[BlackElo "2391"]
[TimeControl "180+2"]
[EndTime "14:57:44 PDT"]
[Termination "attack2mateU won by resignation"]

1. e4 {[%clk 0:03:01.9]} 1... c5 {[%clk 0:02:59]} 2. Nf3 {[%clk 0:03:02]} 2...
d6 {[%clk 0:02:59.6]} 3. d4 {[%clk 0:03:00.3]} 3... cxd4 {[%clk 0:02:59.8]} 4.
Nxd4 {[%clk 0:03:00]} 4... Nf6 {[%clk 0:03:00.8]} 5. Nc3 {[%clk 0:02:59.2]} 5...
a6 {[%clk 0:03:01.6]} 6. Be3 {[%clk 0:02:56.7]} 6... e5 {[%clk 0:03:02.2]} 7.
Nb3 {[%clk 0:02:57.2]} 7... Be7 {[%clk 0:03:03.1]} 8. f3 {[%clk 0:02:52.8]} 8...
Be6 {[%clk 0:03:03.6]} 9. Qd2 {[%clk 0:02:53.7]} 9... O-O {[%clk 0:02:59.2]} 10.
O-O-O {[%clk 0:02:53.3]} 10... Qc7 {[%clk 0:02:58.4]} 11. g4 {[%clk 0:02:51]}
11... b5 {[%clk 0:02:41.6]} 12. g5 {[%clk 0:02:50.1]} 12... Nfd7 {[%clk
0:02:34.5]} 13. Nd5 {[%clk 0:02:44.9]} 13... Bxd5 {[%clk 0:02:34.9]} 14. exd5
{[%clk 0:02:46.4]} 14... Nb6 {[%clk 0:02:09.7]} 15. Na5 {[%clk 0:02:25.6]} 15...
Rc8 {[%clk 0:01:59.1]} 16. Bh3 {[%clk 0:02:24.5]} 16... N8d7 {[%clk 0:01:54.3]}
17. Bxb6 {[%clk 0:02:21.8]} 17... Qxb6 {[%clk 0:01:54.6]} 18. Bxd7 {[%clk
0:02:20.4]} 18... Rc7 {[%clk 0:01:54.2]} 19. Bc6 {[%clk 0:02:19.6]} 19... Rac8
{[%clk 0:01:53.7]} 20. h4 {[%clk 0:02:18.9]} 20... f6 {[%clk 0:01:45.3]} 21.
Rdg1 {[%clk 0:02:16.6]} 21... Rf8 {[%clk 0:01:44.2]} 22. g6 {[%clk 0:02:15.7]}
22... h6 {[%clk 0:01:41.7]} 23. f4 {[%clk 0:02:05.3]} 23... exf4 {[%clk
0:01:36.2]} 24. Re1 {[%clk 0:02:02]} 24... f5 {[%clk 0:01:35.4]} 25. Nb3 {[%clk
0:01:57.7]} 25... Bf6 {[%clk 0:01:32.9]} 26. Qxf4 {[%clk 0:01:55.6]} 26... a5
{[%clk 0:01:34]} 27. Qxd6 {[%clk 0:01:53.1]} 27... a4 {[%clk 0:01:35.1]} 28.
Qe6+ {[%clk 0:01:52.8]} 28... Kh8 {[%clk 0:01:35.5]} 29. Nd2 {[%clk 0:01:36.7]}
29... a3 {[%clk 0:01:28]} 30. bxa3 {[%clk 0:01:10.4]} 30... Qd4 {[%clk
0:01:25.2]} 31. Nb3 {[%clk 0:01:06.3]} 31... Qb2+ {[%clk 0:01:25.1]} 32. Kd1
{[%clk 0:01:04.9]} 32... Bc3 {[%clk 0:01:14.7]} 33. Qd6 {[%clk 0:00:31.2]} 33...
Rcc8 {[%clk 0:01:12.4]} 34. Re7 {[%clk 0:00:25.5]} 34... Qb1+ {[%clk 0:01:07.2]}
35. Nc1 {[%clk 0:00:25.1]} 35... Bf6 {[%clk 0:01:00.4]} 36. Rf7 {[%clk
0:00:21.5]} 36... Rfd8 {[%clk 0:00:46.9]} 37. Rxf6 {[%clk 0:00:14.6]} 37... Rxd6
{[%clk 0:00:45.8]} 38. Rxd6 {[%clk 0:00:16.5]} 38... Qb2 {[%clk 0:00:44.7]} 39.
Re1 {[%clk 0:00:15]} 39... Qd4+ {[%clk 0:00:44.9]} 40. Nd3 {[%clk 0:00:16.5]}
40... Qg4+ {[%clk 0:00:42.6]} 41. Kc1 {[%clk 0:00:16.2]} 41... Qxh4 {[%clk
0:00:40.5]} 42. Rde6 {[%clk 0:00:16.8]} 42... Rg8 {[%clk 0:00:38.2]} 43. Kb2
{[%clk 0:00:11.1]} 43... Qg5 {[%clk 0:00:37.1]} 44. Ne5 {[%clk 0:00:11.3]} 44...
Rf8 {[%clk 0:00:29.8]} 45. Nf7+ {[%clk 0:00:11.5]} 45... Kg8 {[%clk 0:00:31]}
46. Nxg5 {[%clk 0:00:12.2]} 46... hxg5 {[%clk 0:00:32.2]} 47. Re8 {[%clk
0:00:13.1]} 1-0

[Event "*** Titled Tuesday Blitz"]
[Site "Chess.com"]
[Date "2018.07.03"]
[Round "9"]
[White "QDcoach"]
[Black "Ravan_02"]
[Result "1-0"]
[WhiteElo "2658"]
[BlackElo "2466"]
[TimeControl "180+2"]
[EndTime "14:57:48 PDT"]
[Termination "QDcoach won by resignation"]

1. d4 {[%clk 0:03:01.9]} 1... g6 {[%clk 0:02:58]} 2. g3 {[%clk 0:03:02.3]} 2...
Bg7 {[%clk 0:02:59.8]} 3. Bg2 {[%clk 0:03:03.4]} 3... d6 {[%clk 0:03:01.4]} 4.
Nf3 {[%clk 0:03:04.6]} 4... Nf6 {[%clk 0:03:03.1]} 5. O-O {[%clk 0:03:05.7]}
5... O-O {[%clk 0:03:05]} 6. c4 {[%clk 0:03:07.1]} 6... Nbd7 {[%clk 0:03:05.7]}
7. Nc3 {[%clk 0:03:08.5]} 7... e5 {[%clk 0:03:06.2]} 8. e4 {[%clk 0:03:05.6]}
8... exd4 {[%clk 0:03:05.8]} 9. Nxd4 {[%clk 0:03:07.5]} 9... Re8 {[%clk
0:03:07]} 10. f3 {[%clk 0:03:08.1]} 10... Nc5 {[%clk 0:03:07.4]} 11. Be3 {[%clk
0:03:07.6]} 11... a5 {[%clk 0:03:05]} 12. Qd2 {[%clk 0:03:08]} 12... Qe7 {[%clk
0:02:58.4]} 13. b3 {[%clk 0:03:06.7]} 13... Bd7 {[%clk 0:02:58.7]} 14. Rfe1
{[%clk 0:03:06.7]} 14... Rad8 {[%clk 0:02:58.5]} 15. Rad1 {[%clk 0:03:03.2]}
15... c6 {[%clk 0:02:58.6]} 16. Nde2 {[%clk 0:02:46.6]} 16... Bc8 {[%clk
0:02:57.4]} 17. Bf4 {[%clk 0:02:47.3]} 17... Bf8 {[%clk 0:02:56.1]} 18. Bg5
{[%clk 0:02:43.7]} 18... Ne6 {[%clk 0:02:55.6]} 19. Be3 {[%clk 0:02:44.1]} 19...
Nc5 {[%clk 0:02:56.1]} 20. Nd4 {[%clk 0:02:42.3]} 20... Bg7 {[%clk 0:02:52.8]}
21. Qf2 {[%clk 0:02:42.9]} 21... Qc7 {[%clk 0:02:52.3]} 22. Nde2 {[%clk
0:02:35]} 22... Nfd7 {[%clk 0:02:42.5]} 23. Bd4 {[%clk 0:02:33.6]} 23... Ne5
{[%clk 0:02:42.3]} 24. Nc1 {[%clk 0:02:23.5]} 24... f5 {[%clk 0:02:38.7]} 25. f4
{[%clk 0:02:09.6]} 25... Ng4 {[%clk 0:02:38.4]} 26. Qc2 {[%clk 0:02:10.1]} 26...
Bxd4+ {[%clk 0:02:24.1]} 27. Rxd4 {[%clk 0:02:11]} 27... Qb6 {[%clk 0:02:21]}
28. Kh1 {[%clk 0:01:14.2]} 28... Ne6 {[%clk 0:02:19.1]} 29. Rd2 {[%clk
0:01:07.6]} 29... Ne3 {[%clk 0:02:15.3]} 30. Qd3 {[%clk 0:01:07.7]} 30... Nxg2
{[%clk 0:02:13.3]} 31. Kxg2 {[%clk 0:01:09.4]} 31... Nc5 {[%clk 0:02:14.5]} 32.
Qd4 {[%clk 0:01:09.2]} 32... fxe4 {[%clk 0:02:13.7]} 33. Nxe4 {[%clk 0:01:05.8]}
33... Rxe4 {[%clk 0:01:01.2]} 34. Rxe4 {[%clk 0:01:05.4]} 34... Qc7 {[%clk
0:01:02.5]} 35. Re3 {[%clk 0:00:59.2]} 35... Bg4 {[%clk 0:01:01]} 36. Nd3 {[%clk
0:00:55]} 36... Ne6 {[%clk 0:01:01.7]} 37. Qf6 {[%clk 0:00:54.6]} 37... Rf8
{[%clk 0:01:00.2]} 38. Qc3 {[%clk 0:00:49.6]} 38... Qb6 {[%clk 0:00:51.1]} 39.
Nf2 {[%clk 0:00:49.5]} 39... Bf5 {[%clk 0:00:46.2]} 40. Rxd6 {[%clk 0:00:49.7]}
40... Qc5 {[%clk 0:00:38.6]} 41. Rexe6 {[%clk 0:00:45.4]} 41... Bxe6 {[%clk
0:00:27.2]} 42. Rxe6 {[%clk 0:00:46.3]} 42... g5 {[%clk 0:00:25.6]} 43. Re5
{[%clk 0:00:43.2]} 43... Qd6 {[%clk 0:00:22]} 44. Rxg5+ {[%clk 0:00:43.7]} 44...
Kf7 {[%clk 0:00:23.4]} 45. Qg7+ {[%clk 0:00:43.7]} 45... Ke8 {[%clk 0:00:23.9]}
46. Ne4 {[%clk 0:00:41.8]} 46... Qa3 {[%clk 0:00:19.5]} 47. Re5+ {[%clk
0:00:42.6]} 47... Kd8 {[%clk 0:00:19.7]} 48. c5 {[%clk 0:00:43.5]} 48... Qxa2+
{[%clk 0:00:11.2]} 49. Kh3 {[%clk 0:00:44.2]} 1-0

[Event "*** Titled Tuesday Blitz"]
[Site "Chess.com"]
[Date "2018.07.03"]
[Round "9"]
[White "Arman_Hakemi"]
[Black "andrzej"]
[Result "0-1"]
[WhiteElo "2284"]
[BlackElo "2215"]
[TimeControl "180+2"]
[EndTime "14:57:51 PDT"]
[Termination "andrzej won by checkmate"]

1. Nf3 {[%clk 0:03:01.9]} 1... Nf6 {[%clk 0:02:59.4]} 2. g3 {[%clk 0:03:02.1]}
2... e6 {[%clk 0:03:00.3]} 3. Bg2 {[%clk 0:03:02.8]} 3... d5 {[%clk 0:03:01.8]}
4. b3 {[%clk 0:03:03.8]} 4... c5 {[%clk 0:02:58.3]} 5. Bb2 {[%clk 0:03:05.1]}
5... Be7 {[%clk 0:02:58.8]} 6. O-O {[%clk 0:03:05.5]} 6... O-O {[%clk
0:02:59.5]} 7. e3 {[%clk 0:03:04.6]} 7... b6 {[%clk 0:02:58.1]} 8. c4 {[%clk
0:03:05.7]} 8... Bb7 {[%clk 0:02:45.2]} 9. cxd5 {[%clk 0:03:05.6]} 9... Nxd5
{[%clk 0:02:42.5]} 10. d4 {[%clk 0:03:06.5]} 10... Nd7 {[%clk 0:02:42.1]} 11.
Nbd2 {[%clk 0:03:05.7]} 11... cxd4 {[%clk 0:02:38.5]} 12. Nxd4 {[%clk
0:03:06.4]} 12... Nc5 {[%clk 0:02:38.4]} 13. Nc4 {[%clk 0:03:03.3]} 13... Rc8
{[%clk 0:02:33.2]} 14. Qe2 {[%clk 0:03:03.7]} 14... Bf6 {[%clk 0:02:26.6]} 15.
Rfd1 {[%clk 0:03:04.2]} 15... Qc7 {[%clk 0:02:19]} 16. e4 {[%clk 0:03:02.1]}
16... Nb4 {[%clk 0:02:08]} 17. a3 {[%clk 0:03:00.5]} 17... Nba6 {[%clk
0:02:02.8]} 18. Rac1 {[%clk 0:02:48.2]} 18... Qb8 {[%clk 0:01:56.6]} 19. b4
{[%clk 0:02:41.7]} 19... Na4 {[%clk 0:01:50.7]} 20. Ba1 {[%clk 0:02:41.7]} 20...
Rfd8 {[%clk 0:01:36]} 21. e5 {[%clk 0:02:42]} 21... Be7 {[%clk 0:01:36.1]} 22.
Bxb7 {[%clk 0:02:29]} 22... Qxb7 {[%clk 0:01:37.1]} 23. b5 {[%clk 0:02:28.8]}
23... Nc7 {[%clk 0:01:27.6]} 24. Nc6 {[%clk 0:02:29.3]} 24... Re8 {[%clk
0:01:25.3]} 25. Nxe7+ {[%clk 0:02:29]} 25... Rxe7 {[%clk 0:01:25]} 26. Nd6
{[%clk 0:02:30.2]} 26... Qb8 {[%clk 0:01:24.3]} 27. Nxc8 {[%clk 0:02:31.2]}
27... Qxc8 {[%clk 0:01:26.2]} 28. Qc4 {[%clk 0:02:27.8]} 28... Nc5 {[%clk
0:01:26.3]} 29. Bd4 {[%clk 0:02:27.9]} 29... Nd5 {[%clk 0:01:21.2]} 30. Bxc5
{[%clk 0:02:29]} 30... Rc7 {[%clk 0:01:22.6]} 31. Qg4 {[%clk 0:02:23.6]} 31...
bxc5 {[%clk 0:01:21.8]} 32. h4 {[%clk 0:02:24]} 32... c4 {[%clk 0:01:20.6]} 33.
h5 {[%clk 0:02:24.5]} 33... h6 {[%clk 0:01:21.8]} 34. Qd4 {[%clk 0:02:22.3]}
34... c3 {[%clk 0:01:15.3]} 35. a4 {[%clk 0:02:22.7]} 35... Rc5 {[%clk
0:01:07.8]} 36. Rd3 {[%clk 0:02:20]} 36... Qc7 {[%clk 0:01:08]} 37. Rc2 {[%clk
0:02:18.1]} 37... Rc4 {[%clk 0:01:07.9]} 38. Rcxc3 {[%clk 0:02:09.7]} 38... Rxc3
{[%clk 0:01:02.4]} 39. Rxc3 {[%clk 0:02:10.4]} 39... Qxc3 {[%clk 0:00:55.1]} 40.
Qxa7 {[%clk 0:02:10.9]} 40... Qe1+ {[%clk 0:00:46.9]} 41. Kg2 {[%clk 0:02:11.3]}
41... Qe4+ {[%clk 0:00:47.8]} 42. Kg1 {[%clk 0:02:09.5]} 42... Nc3 {[%clk
0:00:33.4]} 43. b6 {[%clk 0:02:07.7]} 43... Ne2+ {[%clk 0:00:28.1]} 44. Kf1
{[%clk 0:02:07]} 44... Nd4 {[%clk 0:00:29.3]} 45. Kg1 {[%clk 0:01:54.3]} 45...
Nf3+ {[%clk 0:00:29.4]} 46. Kf1 {[%clk 0:01:54.7]} 46... Nd4 {[%clk 0:00:14.6]}
47. Kg1 {[%clk 0:01:53]} 47... Nf3+ {[%clk 0:00:15]} 48. Kg2 {[%clk 0:01:46.5]}
48... Nxe5+ {[%clk 0:00:15.6]} 49. Kf1 {[%clk 0:01:47.2]} 49... Qh1+ {[%clk
0:00:14]} 50. Ke2 {[%clk 0:01:48.2]} 50... Qf3+ {[%clk 0:00:15]} 51. Kd2 {[%clk
0:01:48.4]} 51... Qd3+ {[%clk 0:00:15.5]} 52. Kc1 {[%clk 0:01:48.8]} 52... Nc4
{[%clk 0:00:13.5]} 53. Qb8+ {[%clk 0:01:45.2]} 53... Kh7 {[%clk 0:00:13.5]} 54.
Qf4 {[%clk 0:01:46.5]} 54... Qc3+ {[%clk 0:00:11]} 55. Kd1 {[%clk 0:01:46.1]}
55... Nb2+ {[%clk 0:00:08.2]} 56. Ke2 {[%clk 0:01:47.2]} 56... Qd3+ {[%clk
0:00:09.4]} 57. Ke1 {[%clk 0:01:48.6]} 57... Qd1# {[%clk 0:00:10.4]} 0-1

[Event "*** Titled Tuesday Blitz"]
[Site "Chess.com"]
[Date "2018.07.03"]
[Round "9"]
[White "Orest_Vovk"]
[Black "ChrisTool2"]
[Result "0-1"]
[WhiteElo "2244"]
[BlackElo "2281"]
[TimeControl "180+2"]
[EndTime "14:58:01 PDT"]
[Termination "ChrisTool2 won by resignation"]

1. h4 {[%clk 0:03:01.9]} 1... d5 {[%clk 0:02:59.7]} 2. h5 {[%clk 0:03:03]} 2...
e5 {[%clk 0:02:55.9]} 3. h6 {[%clk 0:03:03.4]} 3... Nxh6 {[%clk 0:02:55.7]} 4.
d4 {[%clk 0:03:04.4]} 4... Nc6 {[%clk 0:02:51.3]} 5. Bxh6 {[%clk 0:03:03.7]}
5... gxh6 {[%clk 0:02:53.2]} 6. dxe5 {[%clk 0:03:05]} 6... Nxe5 {[%clk
0:02:49.4]} 7. Nf3 {[%clk 0:02:57.1]} 7... Qf6 {[%clk 0:02:34.4]} 8. c3 {[%clk
0:02:41.4]} 8... Be6 {[%clk 0:02:29.2]} 9. Qd4 {[%clk 0:02:24.7]} 9... Bd6
{[%clk 0:02:00.7]} 10. Nbd2 {[%clk 0:02:13.8]} 10... O-O {[%clk 0:01:27.6]} 11.
Rh5 {[%clk 0:01:57.4]} 11... Nxf3+ {[%clk 0:01:17.4]} 12. Nxf3 {[%clk
0:01:49.1]} 12... Qg6 {[%clk 0:01:00.6]} 13. Qh4 {[%clk 0:01:39.6]} 13... Be7
{[%clk 0:00:45]} 14. Qh1 {[%clk 0:01:18.2]} 14... Bg5 {[%clk 0:00:29.8]} 15.
Nxg5 {[%clk 0:01:17.9]} 15... hxg5 {[%clk 0:00:30.7]} 16. Rh6 {[%clk 0:01:18.1]}
16... Qc2 {[%clk 0:00:29.6]} 17. Qh5 {[%clk 0:01:03.6]} 17... Bf5 {[%clk
0:00:29.9]} 18. Qxg5+ {[%clk 0:00:59.7]} 18... Bg6 {[%clk 0:00:30.8]} 19. Qd2
{[%clk 0:01:00.1]} 19... Qe4 {[%clk 0:00:23.8]} 20. f3 {[%clk 0:00:40.3]} 20...
Qe5 {[%clk 0:00:24.5]} 21. Kf2 {[%clk 0:00:26.6]} 21... c5 {[%clk 0:00:18.8]}
22. Rd1 {[%clk 0:00:24.4]} 22... Rad8 {[%clk 0:00:19.3]} 23. e3 {[%clk
0:00:25.5]} 23... Rfe8 {[%clk 0:00:18.7]} 24. Bd3 {[%clk 0:00:23.8]} 24... d4
{[%clk 0:00:15]} 25. exd4 {[%clk 0:00:20.9]} 25... cxd4 {[%clk 0:00:14.2]} 26.
Bxg6 {[%clk 0:00:20.7]} 26... fxg6 {[%clk 0:00:13.6]} 27. cxd4 {[%clk
0:00:20.8]} 27... Qb5 {[%clk 0:00:08.1]} 28. b3 {[%clk 0:00:19.8]} 28... Rd7
{[%clk 0:00:07.6]} 29. Rh4 {[%clk 0:00:19.6]} 29... Rde7 {[%clk 0:00:08.2]} 30.
Kg3 {[%clk 0:00:13.7]} 30... Re2 {[%clk 0:00:06.7]} 31. Qh6 {[%clk 0:00:12.3]}
31... Qd7 {[%clk 0:00:04.8]} 32. Rf4 {[%clk 0:00:12.1]} 32... Qc7 {[%clk
0:00:04.7]} 33. Qg5 {[%clk 0:00:11.1]} 33... Rf8 {[%clk 0:00:04.8]} 34. Qd5+
{[%clk 0:00:06.7]} 34... Kg7 {[%clk 0:00:05.2]} 35. Qg5 {[%clk 0:00:05.9]} 35...
Rxf4 {[%clk 0:00:05.5]} 36. Qxf4 {[%clk 0:00:07]} 36... Rxg2+ {[%clk 0:00:06.5]}
37. Kxg2 {[%clk 0:00:08.5]} 37... Qxf4 {[%clk 0:00:07.7]} 38. Kf2 {[%clk
0:00:10.4]} 38... Qd6 {[%clk 0:00:07.9]} 39. d5 {[%clk 0:00:10.9]} 39... h5
{[%clk 0:00:09.3]} 40. Ke3 {[%clk 0:00:11.8]} 40... g5 {[%clk 0:00:10.6]} 41.
Ke4 {[%clk 0:00:12.9]} 41... Qf4+ {[%clk 0:00:10.8]} 42. Kd3 {[%clk 0:00:14]}
42... Qxf3+ {[%clk 0:00:12.3]} 43. Kc2 {[%clk 0:00:15.7]} 43... Qg2+ {[%clk
0:00:12.3]} 44. Rd2 {[%clk 0:00:16.4]} 44... Qg4 {[%clk 0:00:11.8]} 45. d6
{[%clk 0:00:17.5]} 45... Qd7 {[%clk 0:00:13.3]} 46. Kc3 {[%clk 0:00:18.3]} 46...
g4 {[%clk 0:00:14.6]} 47. Rd5 {[%clk 0:00:19.1]} 47... Kg6 {[%clk 0:00:14.7]}
48. Kd4 {[%clk 0:00:19]} 48... h4 {[%clk 0:00:15.8]} 49. Ke5 {[%clk 0:00:19.1]}
49... g3 {[%clk 0:00:16.3]} 50. Rd3 {[%clk 0:00:19.3]} 50... g2 {[%clk
0:00:16.7]} 51. Rd1 {[%clk 0:00:19.9]} 51... h3 {[%clk 0:00:17.3]} 52. Rc1
{[%clk 0:00:20.8]} 52... Qf5+ {[%clk 0:00:17.4]} 53. Kd4 {[%clk 0:00:21.2]}
53... Qf4+ {[%clk 0:00:18.6]} 54. Kd5 {[%clk 0:00:21.9]} 54... Qxc1 {[%clk
0:00:19.5]} 0-1

[Event "*** Titled Tuesday Blitz"]
[Site "Chess.com"]
[Date "2018.07.03"]
[Round "9"]
[White "EndgameGrinder"]
[Black "Artur0208"]
[Result "1-0"]
[WhiteElo "2465"]
[BlackElo "2437"]
[TimeControl "180+2"]
[EndTime "14:58:01 PDT"]
[Termination "EndgameGrinder won by resignation"]

1. e4 {[%clk 0:03:01.9]} 1... e5 {[%clk 0:02:59.3]} 2. Nf3 {[%clk 0:03:02.9]}
2... Nc6 {[%clk 0:02:58.5]} 3. d4 {[%clk 0:03:04.5]} 3... exd4 {[%clk
0:02:58.7]} 4. Nxd4 {[%clk 0:03:06.4]} 4... Bc5 {[%clk 0:02:59.5]} 5. Nb3 {[%clk
0:03:06.9]} 5... Bb6 {[%clk 0:02:59.6]} 6. Nc3 {[%clk 0:03:08.6]} 6... Nf6
{[%clk 0:02:58.7]} 7. Qe2 {[%clk 0:03:10.1]} 7... O-O {[%clk 0:02:59.1]} 8. Bg5
{[%clk 0:03:11.6]} 8... h6 {[%clk 0:02:58.9]} 9. Be3 {[%clk 0:03:12.4]} 9...
Bxe3 {[%clk 0:02:56.1]} 10. Qxe3 {[%clk 0:03:12.8]} 10... Qe7 {[%clk 0:02:57.6]}
11. O-O-O {[%clk 0:03:11.6]} 11... d6 {[%clk 0:02:58.7]} 12. f3 {[%clk
0:03:12.2]} 12... Be6 {[%clk 0:02:58.4]} 13. g4 {[%clk 0:03:02.5]} 13... a5
{[%clk 0:02:57.9]} 14. Nd4 {[%clk 0:02:49.2]} 14... Nxd4 {[%clk 0:02:57.6]} 15.
Qxd4 {[%clk 0:02:51.1]} 15... Nd7 {[%clk 0:02:54.9]} 16. h4 {[%clk 0:02:46.9]}
16... Ne5 {[%clk 0:02:55.1]} 17. Be2 {[%clk 0:02:46.5]} 17... Qf6 {[%clk
0:02:55.9]} 18. a4 {[%clk 0:02:17.9]} 18... Qf4+ {[%clk 0:02:55.4]} 19. Qd2
{[%clk 0:02:17.3]} 19... Qxd2+ {[%clk 0:02:56]} 20. Kxd2 {[%clk 0:02:13.7]}
20... g5 {[%clk 0:02:56.6]} 21. Ke3 {[%clk 0:02:06.7]} 21... Kg7 {[%clk
0:02:56.6]} 22. b3 {[%clk 0:02:00.4]} 22... f6 {[%clk 0:02:48.6]} 23. Nb5 {[%clk
0:01:59.6]} 23... Rf7 {[%clk 0:02:44.5]} 24. Nd4 {[%clk 0:01:53.3]} 24... Bd7
{[%clk 0:02:45.2]} 25. Bb5 {[%clk 0:01:52.2]} 25... c6 {[%clk 0:02:41.3]} 26.
Be2 {[%clk 0:01:51.3]} 26... Re8 {[%clk 0:02:40.4]} 27. Bc4 {[%clk 0:01:42.1]}
27... Rfe7 {[%clk 0:02:38.1]} 28. Kf2 {[%clk 0:01:40.7]} 28... Nxg4+ {[%clk
0:01:51.9]} 29. fxg4 {[%clk 0:01:40]} 29... Rxe4 {[%clk 0:01:53.3]} 30. Nf5+
{[%clk 0:01:31.5]} 30... Bxf5 {[%clk 0:01:53]} 31. gxf5 {[%clk 0:01:33.4]} 31...
Rf4+ {[%clk 0:01:53.6]} 32. Kg2 {[%clk 0:01:25.2]} 32... Rg4+ {[%clk 0:01:52.2]}
33. Kf3 {[%clk 0:01:04.6]} 33... Rf4+ {[%clk 0:01:52.5]} 34. Kg3 {[%clk
0:00:53.3]} 34... Re3+ {[%clk 0:01:51.3]} 35. Kg2 {[%clk 0:00:54.4]} 35... d5
{[%clk 0:01:51.7]} 36. Bd3 {[%clk 0:00:53.6]} 36... Rff3 {[%clk 0:01:48.3]} 37.
Rh2 {[%clk 0:00:43.4]} 37... g4 {[%clk 0:01:47.1]} 38. h5 {[%clk 0:00:37.4]}
38... g3 {[%clk 0:01:37.9]} 39. Rh3 {[%clk 0:00:33.9]} 39... c5 {[%clk 0:01:32]}
40. Rf1 {[%clk 0:00:32.4]} 40... Rxf1 {[%clk 0:01:25.4]} 41. Bxf1 {[%clk
0:00:34.3]} 41... Kf7 {[%clk 0:01:22.7]} 42. Rxg3 {[%clk 0:00:34.7]} 42... Re1
{[%clk 0:01:24.5]} 43. Kf2 {[%clk 0:00:32.4]} 43... Rc1 {[%clk 0:01:23.7]} 44.
Bd3 {[%clk 0:00:33.5]} 44... Rh1 {[%clk 0:01:21.2]} 45. Be2 {[%clk 0:00:31.5]}
45... Rc1 {[%clk 0:01:08.7]} 46. Rg6 {[%clk 0:00:19.9]} 46... Rxc2 {[%clk
0:01:09.3]} 47. Rxh6 {[%clk 0:00:21.4]} 47... d4 {[%clk 0:01:00.9]} 48. Rh7+
{[%clk 0:00:22.6]} 48... Kg8 {[%clk 0:01:01.4]} 49. Rd7 {[%clk 0:00:23.1]} 49...
Rb2 {[%clk 0:00:52.9]} 50. Ke1 {[%clk 0:00:21.8]} 50... Rb1+ {[%clk 0:00:54.2]}
51. Kd2 {[%clk 0:00:22.6]} 51... Rb2+ {[%clk 0:00:56.1]} 52. Kd1 {[%clk
0:00:23.1]} 52... Rb1+ {[%clk 0:00:53.2]} 53. Kc2 {[%clk 0:00:23.6]} 53... Rh1
{[%clk 0:00:55]} 54. Rxb7 {[%clk 0:00:22.2]} 54... Rh3 {[%clk 0:00:55.1]} 55.
Rb5 {[%clk 0:00:19.1]} 55... Rc3+ {[%clk 0:00:55.8]} 56. Kd2 {[%clk 0:00:20.2]}
56... Kg7 {[%clk 0:00:54.7]} 57. Bc4 {[%clk 0:00:20.8]} 57... Kh6 {[%clk
0:00:54.4]} 58. Rxa5 {[%clk 0:00:22.1]} 58... Kxh5 {[%clk 0:00:53.8]} 59. Rxc5
{[%clk 0:00:23.3]} 59... Kg4 {[%clk 0:00:55.4]} 60. Be2+ {[%clk 0:00:23.6]}
60... Kf4 {[%clk 0:00:56.3]} 61. Rxc3 {[%clk 0:00:25.5]} 1-0

[Event "*** Titled Tuesday Blitz"]
[Site "Chess.com"]
[Date "2018.07.03"]
[Round "9"]
[White "sergeikim"]
[Black "dolynachess"]
[Result "1-0"]
[WhiteElo "2412"]
[BlackElo "2394"]
[TimeControl "180+2"]
[EndTime "14:58:04 PDT"]
[Termination "sergeikim won by resignation"]

1. d4 {[%clk 0:03:01.9]} 1... Nf6 {[%clk 0:02:51.7]} 2. c4 {[%clk 0:03:02.6]}
2... c5 {[%clk 0:02:43.1]} 3. d5 {[%clk 0:03:02.8]} 3... b5 {[%clk 0:02:44.6]}
4. cxb5 {[%clk 0:03:03.9]} 4... a6 {[%clk 0:02:46.2]} 5. b6 {[%clk 0:03:05.5]}
5... d6 {[%clk 0:02:47]} 6. Nc3 {[%clk 0:03:06.3]} 6... Nbd7 {[%clk 0:02:48.5]}
7. e4 {[%clk 0:03:07.1]} 7... g6 {[%clk 0:02:49.6]} 8. Nf3 {[%clk 0:03:07.5]}
8... Bg7 {[%clk 0:02:51]} 9. Be2 {[%clk 0:03:08.4]} 9... O-O {[%clk 0:02:52.5]}
10. O-O {[%clk 0:03:09.3]} 10... Qxb6 {[%clk 0:02:50]} 11. a4 {[%clk 0:03:10]}
11... Rb8 {[%clk 0:02:46.5]} 12. Nd2 {[%clk 0:03:07.4]} 12... Ne8 {[%clk
0:02:29.9]} 13. Ra3 {[%clk 0:03:02.5]} 13... Nc7 {[%clk 0:02:28.4]} 14. Qc2
{[%clk 0:02:56.1]} 14... Qa7 {[%clk 0:02:16.7]} 15. Nc4 {[%clk 0:02:52.8]} 15...
Bb7 {[%clk 0:02:15.3]} 16. Bg5 {[%clk 0:02:49.1]} 16... Rfe8 {[%clk 0:02:15.1]}
17. Qd2 {[%clk 0:02:43.7]} 17... Ne5 {[%clk 0:02:06.2]} 18. Bh6 {[%clk
0:02:26.7]} 18... Nxc4 {[%clk 0:02:01.9]} 19. Bxc4 {[%clk 0:02:26.7]} 19... Bh8
{[%clk 0:01:58.9]} 20. Nd1 {[%clk 0:02:22.8]} 20... e6 {[%clk 0:01:49.7]} 21.
dxe6 {[%clk 0:02:17.5]} 21... Nxe6 {[%clk 0:01:50.7]} 22. Qxd6 {[%clk
0:02:12.6]} 22... Bxe4 {[%clk 0:01:49.6]} 23. Re3 {[%clk 0:02:03.4]} 23... Nd4
{[%clk 0:01:44.1]} 24. Qf4 {[%clk 0:01:44.4]} 24... Qb7 {[%clk 0:00:56.4]} 25.
Nc3 {[%clk 0:01:26.2]} 25... Bxg2 {[%clk 0:00:35.3]} 26. Bxf7+ {[%clk
0:00:50.1]} 26... Qxf7 {[%clk 0:00:31.7]} 27. Qxf7+ {[%clk 0:00:49.2]} 27...
Kxf7 {[%clk 0:00:33.4]} 28. Kxg2 {[%clk 0:00:50.2]} 28... Rxb2 {[%clk
0:00:29.6]} 29. Ne4 {[%clk 0:00:49.7]} 29... Re5 {[%clk 0:00:12.3]} 30. Bf4
{[%clk 0:00:41.4]} 30... Nf5 {[%clk 0:00:07.5]} 31. Ree1 {[%clk 0:00:22.1]}
31... Rd5 {[%clk 0:00:04.5]} 32. Ng5+ {[%clk 0:00:20.7]} 32... Kg8 {[%clk
0:00:02.5]} 33. Re8+ {[%clk 0:00:19]} 33... Kg7 {[%clk 0:00:03.6]} 34. Be5+
{[%clk 0:00:14.5]} 34... Kh6 {[%clk 0:00:04.1]} 35. Nf7+ {[%clk 0:00:14.5]}
35... Kh5 {[%clk 0:00:04.3]} 36. Bxh8 {[%clk 0:00:13.3]} 36... Rd7 {[%clk
0:00:03.3]} 37. Bxb2 {[%clk 0:00:12.4]} 37... Rxf7 {[%clk 0:00:02.9]} 38. Re4
{[%clk 0:00:10.4]} 38... Rb7 {[%clk 0:00:04.3]} 39. Bc3 {[%clk 0:00:10.4]} 39...
Rb3 {[%clk 0:00:06.1]} 40. Rc4 {[%clk 0:00:10.4]} 40... Nh4+ {[%clk 0:00:08]}
41. Kh1 {[%clk 0:00:10.3]} 41... Nf5 {[%clk 0:00:07.6]} 42. Rxc5 {[%clk
0:00:10.9]} 42... Ra3 {[%clk 0:00:09.5]} 43. a5 {[%clk 0:00:11.3]} 43... Ra2
{[%clk 0:00:10.2]} 44. h3 {[%clk 0:00:11.3]} 44... Kh4 {[%clk 0:00:11.2]} 45.
Kh2 {[%clk 0:00:12.3]} 45... Rc2 {[%clk 0:00:10.5]} 46. Bf6+ {[%clk 0:00:12.7]}
46... Kh5 {[%clk 0:00:10.5]} 47. Rxc2 {[%clk 0:00:14.1]} 1-0